Workbook

Sheet +NZD
AH2: Pair | AI2: BUY | AJ2: SELL
B3: AUDCAD | C3: AUDJPY | D3: AUDNZD | E3: AUDUSD | F3: CADCHF | G3: CADJPY | H3: CHFJPY | I3: EURAUD | J3: EURCAD | K3: EURCHF | L3: EURGBP | M3: EURJPY | N3: GBPCAD | O3: GBPAUD | P3: GBPNZD | Q3: GBPCHF | R3: GBPJPY | S3: GBPUSD | T3: NZDJPY | U3: NZDUSD | V3: USDCAD | W3: USDCHF | X3: USDJPY | Y3: AUDCHF | Z3: EURUSD | AA3: EURNZD | AB3: NZDCAD | AC3: NZDCHF | AH3: AUDCAD | AI3: =HLOOKUP(LEFT(AH3,3),$C$17:$J$18,2,FALSE) -> 5.857142857 | AJ3: =HLOOKUP(RIGHT(AH3,3),$C$17:$J$18,2,FALSE) -> 6.857142857
A4: High | B4: =[1]!AUDCAD -> 1.0412 | C4: =[1]!AUDJPY -> 102.34 | D4: =[1]!AUDNZD -> 1.2081 | E4: =[1]!AUDUSD -> 1.0324 | F4: =[1]!CADCHF -> 0.93 | G4: =[1]!CADJPY -> 98.35 | H4: =[1]!CHFJPY -> 106.37 | I4: =[1]!EURAUD -> 1.2816 | J4: =[1]!EURCAD -> 1.3297 | K4: =[1]!EURCHF -> 1.2274 | L4: =[1]!EURGBP -> 0.845 | M4: =[1]!EURJPY -> 130.36 | N4: =[1]!GBPCAD -> 1.5744 | O4: =[1]!GBPAUD -> 1.517 | P4: =[1]!GBPNZD -> 1.8283 | Q4: =[1]!GBPCHF -> 1.4585 | R4: =[1]!GBPJPY -> 154.66 | S4: =[1]!GBPUSD -> 1.5601 | T4: =[1]!NZDJPY -> 84.71 | U4: =[1]!NZDUSD -> 0.855 | V4: =[1]!USDCAD -> 1.0133 | W4: =[1]!USDCHF -> 0.9399 | X4: =[1]!USDJPY -> 99.26 | Y4: =[1]!AUDCHF -> 0.9653 | Z4: =[1]!EURUSD -> 1.3159 | AA4: =[1]!EURNZD -> 1.5445 | AB4: =[1]!NZDCAD -> 0.863 | AC4: =[1]!NZDCHF -> 0.8 | AH4: AUDJPY | AI4: =HLOOKUP(LEFT(AH4,3),$C$17:$J$18,2,FALSE) -> 5.857142857 | AJ4: =HLOOKUP(RIGHT(AH4,3),$C$17:$J$18,2,FALSE) -> 1.285714286
A5: Ask | B5: =[2]!AUDCAD -> 1.0406 | C5: =[2]!AUDJPY -> 102.14 | D5: =[2]!AUDNZD -> 1.2104 | E5: =[2]!AUDUSD -> 1.0321 | F5: =[2]!CADCHF -> 0.9285 | G5: =[2]!CADJPY -> 98.28 | H5: =[2]!CHFJPY -> 105.85 | I5: =[2]!EURAUD -> 1.2719 | J5: =[2]!EURCAD -> 1.3224 | K5: =[2]!EURCHF -> 1.2268 | L5: =[2]!EURGBP -> 0.8425 | M5: =[2]!EURJPY -> 129.87 | N5: =[2]!GBPCAD -> 1.5703 | O5: =[2]!GBPAUD -> 1.5104 | P5: =[2]!GBPNZD -> 1.8269 | Q5: =[2]!GBPCHF -> 1.4571 | R5: =[2]!GBPJPY -> 154.22 | S5: =[2]!GBPUSD -> 1.5575 | T5: =[2]!NZDJPY -> 84.56 | U5: =[2]!NZDUSD -> 0.8536 | V5: =[2]!USDCAD -> 1.008 | W5: =[2]!USDCHF -> 0.9356 | X5: =[2]!USDJPY -> 99.03 | Y5: =[2]!AUDCHF -> 0.966 | Z5: =[2]!EURUSD -> 1.3116 | AA5: =[2]!EURNZD -> 1.538 | AB5: =[2]!NZDCAD -> 0.8608 | AC5: =[2]!NZDCHF -> 0.7991 | AE5: 0 | AF5: 0 | AH5: AUDNZD | AI5: 5.857142857 | AJ5: 3.857142857
A6: Bid | B6: =[3]!AUDCAD -> 1.0397 | C6: =[3]!AUDJPY -> 102.1 | D6: =[3]!AUDNZD -> 1.2075 | E6: =[3]!AUDUSD -> 1.0318 | F6: =[3]!CADCHF -> 0.9278 | G6: =[3]!CADJPY -> 98.19 | H6: =[3]!CHFJPY -> 105.8 | I6: =[3]!EURAUD -> 1.2708 | J6: =[3]!EURCAD -> 1.3215 | K6: =[3]!EURCHF -> 1.2264 | L6: =[3]!EURGBP -> 0.8422 | M6: =[3]!EURJPY -> 129.84 | N6: =[3]!GBPCAD -> 1.5689 | O6: =[3]!GBPAUD -> 1.5085 | P6: =[3]!GBPNZD -> 1.8235 | Q6: =[3]!GBPCHF -> 1.4564 | R6: =[3]!GBPJPY -> 154.15 | S6: =[3]!GBPUSD -> 1.5572 | T6: =[3]!NZDJPY -> 84.42 | U6: =[3]!NZDUSD -> 0.8533 | V6: =[3]!USDCAD -> 1.0077 | W6: =[3]!USDCHF -> 0.9353 | X6: =[3]!USDJPY -> 99 | Y6: =[3]!AUDCHF -> 0.9646 | Z6: =[3]!EURUSD -> 1.3113 | AA6: =[3]!EURNZD -> 1.5356 | AB6: =[3]!NZDCAD -> 0.8594 | AC6: =[3]!NZDCHF -> 0.7972 | AE6: 3 | AF6: 1 | AH6: AUDUSD | AI6: 5.857142857 | AJ6: 3.714285714
A7: Low | B7: =[4]!AUDCAD -> 1.0345 | C7: =[4]!AUDJPY -> 100.23 | D7: =[4]!AUDNZD -> 1.2013 | E7: =[4]!AUDUSD -> 1.0242 | F7: =[4]!CADCHF -> 0.9198 | G7: =[4]!CADJPY -> 96.71 | H7: =[4]!CHFJPY -> 104.67 | I7: =[4]!EURAUD -> 1.2685 | J7: =[4]!EURCAD -> 1.3172 | K7: =[4]!EURCHF -> 1.2207 | L7: =[4]!EURGBP -> 0.8405 | M7: =[4]!EURJPY -> 127.84 | N7: =[4]!GBPCAD -> 1.564 | O7: =[4]!GBPAUD -> 1.5069 | P7: =[4]!GBPNZD -> 1.8178 | Q7: =[4]!GBPCHF -> 1.4479 | R7: =[4]!GBPJPY -> 152.03 | S7: =[4]!GBPUSD -> 1.548 | T7: =[4]!NZDJPY -> 83.07 | U7: =[4]!NZDUSD -> 0.8473 | V7: =[4]!USDCAD -> 1.0073 | W7: =[4]!USDCHF -> 0.9302 | X7: =[4]!USDJPY -> 97.87 | Y7: =[4]!AUDCHF -> 0.9539 | Z7: =[4]!EURUSD -> 1.3034 | AA7: =[4]!EURNZD -> 1.5298 | AB7: =[4]!NZDCAD -> 0.8565 | AC7: =[4]!NZDCHF -> 0.7909 | AE7: 10 | AF7: 2 | AH7: CADCHF | AI7: 6.857142857 | AJ7: 4.142857143
AE8: 25 | AF8: 3 | AH8: CADJPY | AI8: 6.857142857 | AJ8: 1.285714286
A9: PIP Range | B9: =($B4:$AC4-$B7:$AC7)*100000 -> 670 | C9: =($B4:$AC4-$B7:$AC7)*1000 -> 2110 | D9: =($B4:$AC4-$B7:$AC7)*100000 -> 680 | E9: 820 | F9: 1020 | G9: =($B4:$AC4-$B7:$AC7)*1000 -> 1640 | H9: =($B4:$AC4-$B7:$AC7)*1000 -> 1700 | I9: =($B4:$AC4-$B7:$AC7)*100000 -> 1310 | J9: 1250 | K9: 670 | L9: 450 | M9: =($B4:$AC4-$B7:$AC7)*1000 -> 2520 | N9: 1040 | O9: 1010 | P9: 1050 | Q9: 1060 | R9: =($B4:$AC4-$B7:$AC7)*1000 -> 2630 | S9: 1210 | T9: =($B4:$AC4-$B7:$AC7)*1000 -> 1640 | U9: 770 | V9: 600 | W9: 970 | X9: =($B4:$AC4-$B7:$AC7)*1000 -> 1390 | Y9: 1140 | Z9: 1250 | AA9: 1470 | AB9: 650 | AC9: =($B4:$AC4-$B7:$AC7)*100000 -> 910 | AE9: 40 | AF9: 4 | AH9: CHFJPY | AI9: 4.142857143 | AJ9: 1.285714286
A10: Bid Ratio | B10: =($B6:$AC6-$B7:$AC7)/$B22:$AC22*100000 -> 0.2961783607 | C10: =($B6:$AC6-$B7:$AC7)/$B22:$AC22*1000 -> 1.31648 | D10: =($B6:$AC6-$B7:$AC7)/$B22:$AC22*100000 -> 0.312635231 | E10: 0.4870342772 | F10: 0.6090968703 | G10: =($B6:$AC6-$B7:$AC7)/$B22:$AC22*1000 -> 1.103837377 | H10: =($B6:$AC6-$B7:$AC7)/$B22:$AC22*1000 -> 0.7140118033 | I10: 0.1892183607 | J10: 0.3572780924 | K10: 0.4630302832 | L10: 0.1091465872 | M10: =($B6:$AC6-$B7:$AC7)/$B22:$AC22*1000 -> 1.937442623 | N10: 0.427487392 | O10: 0.06389698957 | P10: 0.6425046796 | Q10: 0.9034220566 | R10: =($B6:$AC6-$B7:$AC7)/$B22:$AC22*1000 -> 2.449746885 | S10: 0.7491624441 | T10: =($B6:$AC6-$B7:$AC7)/$B22:$AC22*1000 -> 0.7449344262 | U10: 0.3018777943 | V10: 0.01772542474 | W10: 0.3175285842 | X10: =($B6:$AC6-$B7:$AC7)/$B22:$AC22*1000 -> 0.6675521311 | Y10: 0.8271498659 | Z10: 0.632 | AA10: 0.5460401788 | AB10: 0.1466682563 | AC10: 0.379862772 | AE10: 50 | AF10: 5 | AH10: EURAUD | AI10: 4.428571429 | AJ10: 5.857142857
AE11: 60 | AF11: 6 | AH11: EURCAD | AI11: 4.428571429 | AJ11: 6.857142857
A12: Relative | B12: =LEFT(B3,3) -> AUD | C12: =LEFT(C3,3) -> AUD | D12: AUD | E12: AUD | F12: =LEFT(F3,3) -> CAD | G12: CAD | H12: CHF | I12: EUR | J12: EUR | K12: EUR | L12: EUR | M12: EUR | N12: GBP | O12: GBP | P12: GBP | Q12: GBP | R12: GBP | S12: GBP | T12: NZD | U12: NZD | V12: USD | W12: USD | X12: USD | Y12: =LEFT(Y3,3) -> AUD | Z12: =LEFT(Z3,3) -> EUR | AA12: =LEFT(AA3,3) -> EUR | AB12: =LEFT(AB3,3) -> NZD | AC12: =LEFT(AC3,3) -> NZD | AE12: 75 | AF12: 7 | AH12: EURCHF | AI12: 4.428571429 | AJ12: 4.142857143
A13: Strength | B13: =LOOKUP(100*B10,$AE5:$AE14,$AF5:$AF14) -> 3 | C13: =LOOKUP(100*C10,$AE5:$AE14,$AF5:$AF14) -> 9 | D13: 3 | E13: 4 | F13: =LOOKUP(100*F10,$AE5:$AE14,$AF5:$AF14) -> 6 | G13: 9 | H13: 6 | I13: 2 | J13: 3 | K13: 4 | L13: 2 | M13: 9 | N13: 4 | O13: 1 | P13: 6 | Q13: 8 | R13: 9 | S13: 6 | T13: 6 | U13: 3 | V13: 0 | W13: 3 | X13: 6 | Y13: =LOOKUP(100*Y10,$AE5:$AE14,$AF5:$AF14) -> 7 | Z13: =LOOKUP(100*Z10,$AE5:$AE14,$AF5:$AF14) -> 6 | AA13: =LOOKUP(100*AA10,$AE5:$AE14,$AF5:$AF14) -> 5 | AB13: =LOOKUP(100*AB10,$AE5:$AE14,$AF5:$AF14) -> 2 | AC13: =LOOKUP(100*AC10,$AE5:$AE14,$AF5:$AF14) -> 3 | AE13: 90 | AF13: 8 | AH13: EURGBP | AI13: 4.428571429 | AJ13: 5.857142857
B14: =RIGHT(B3,3) -> CAD | C14: =RIGHT(C3,3) -> JPY | D14: NZD | E14: USD | F14: =RIGHT(F3,3) -> CHF | G14: JPY | H14: JPY | I14: AUD | J14: CAD | K14: CHF | L14: GBP | M14: JPY | N14: CAD | O14: AUD | P14: NZD | Q14: CHF | R14: JPY | S14: USD | T14: JPY | U14: USD | V14: CAD | W14: CHF | X14: JPY | Y14: =RIGHT(Y3,3) -> CHF | Z14: =RIGHT(Z3,3) -> USD | AA14: =RIGHT(AA3,3) -> NZD | AB14: =RIGHT(AB3,3) -> CAD | AC14: =RIGHT(AC3,3) -> CHF | AE14: 97 | AF14: 9 | AH14: EURJPY | AI14: 4.428571429 | AJ14: 1.285714286
B15: =9-B13 -> 6 | C15: =9-C13 -> 0 | D15: 6 | E15: 5 | F15: =9-F13 -> 3 | G15: 0 | H15: 3 | I15: 7 | J15: 6 | K15: 5 | L15: 7 | M15: 0 | N15: 5 | O15: 8 | P15: 3 | Q15: 1 | R15: 0 | S15: 3 | T15: 3 | U15: 6 | V15: 9 | W15: 6 | X15: 3 | Y15: =9-Y13 -> 2 | Z15: =9-Z13 -> 3 | AA15: =9-AA13 -> 4 | AB15: =9-AB13 -> 7 | AC15: =9-AC13 -> 6 | AH15: GBPCAD | AI15: 5.857142857 | AJ15: 6.857142857
AH16: GBPAUD | AI16: 5.857142857 | AJ16: 5.857142857
A17: Total Strength | C17: USD | D17: EUR | E17: GBP | F17: CHF | G17: NZD | H17: AUD | I17: JPY | J17: CAD | L17: Strong | AH17: GBPCAD | AI17: 5.857142857 | AJ17: 6.857142857
C18: =(V13+W13+X13+E15+S15+U15+Z15)/C19 -> 3.714285714 | D18: =(I13+J13+K13+L13+M13+Z13+AA13)/D19 -> 4.428571429 | E18: =(N13+O13+P13+Q13+R13+S13+L15)/E19 -> 5.857142857 | F18: =(F15+H13+K15+Q15+W15+Y15+AC15)/F19 -> 4.142857143 | G18: =(T13+U13+D15+P15+AA15+AB13+AC13)/G19 -> 3.857142857 | H18: =(B13+C13+D13+E13+I15+O15+Y13)/H19 -> 5.857142857 | I18: =(C15+G15+H15+M15+R15+T15+X15)/I19 -> 1.285714286 | J18: =(F13+G13+B15+J15+N15+V15+AB15)/J19 -> 6.857142857 | L18: Rising | AH18: GBPCHF | AI18: 5.857142857 | AJ18: 4.142857143
B19: # of evaluation points | C19: =COUNTIF($B$12:$AC$15,"=USD") -> 7 | D19: =COUNTIF($B$12:$AC$15,"=EUR") -> 7 | E19: =COUNTIF($B$12:$AC$15,"=GBP") -> 7 | F19: =COUNTIF($B$12:$AC$15,"=CHF") -> 7 | G19: =COUNTIF($B$12:$AC$15,"=NZD") -> 7 | H19: =COUNTIF($B$12:$AC$15,"=AUD") -> 7 | I19: =COUNTIF($B$12:$AC$15,"=JPY") -> 7 | J19: =COUNTIF($B$12:$AC$15,"=CAD") -> 7 | L19: Neutral | AH19: GBPJPY | AI19: 5.857142857 | AJ19: 1.285714286
L20: Weak | Z20: eurusd | AH20: GBPUSD | AI20: 5.857142857 | AJ20: 3.714285714
B21: =B9*C41*F41 -> 64015.82 | C21: =C9*C46*F46 -> 249182.56 | D21: =D9*C52*F52 -> 57519.84 | E21: =E9*C42*F42 -> 88150 | F21: =F9*C39*F39 -> 130274.4 | G21: =G9*C40*F40 -> 205186.96 | H21: =H9*C35*F35 -> 180193.2 | I21: =I9*C43*F43 -> 180787.86 | J21: =J9*C37*F37 -> 174225 | K21: =K9*C31*F31 -> 91300.23 | L21: =L9*C30*F30 -> 48465.9 | M21: =M9*C32*F32 -> 409507.56 | N21: =N9*C38*F38 -> 152202.96 | O21: =O9*C44*F44 -> 67661.92 | P21: =P9*C49*F49 -> 198542.4 | Q21: =Q9*C33*F33 -> 188990.58 | R21: =R9*C34*F34 -> 509804.46 | S21: =S9*C27*F27 -> 165286 | T21: =T9*C51*F51 -> 151806.6 | U21: =U9*C48*F48 -> 64988 | V21: =V9*C36*F36 -> 44601.6 | W21: =(W9*C28*F28) -> 101308.74 | X21: =(X9*C29*F29) -> 137747.61 | Y21: =(Y9*C45*F45) -> 147831.78 | Z21: =(Z9*C26*F26) -> 167750 | AA21: =(AA9*C47*F47) -> 232154.16 | AB21: =(AB9*C53*F53) -> 55146 | AC21: =(AC9*C50*F50) -> 92042.86 | AH21: NZDJPY | AI21: 3.857142857 | AJ21: 1.285714286
B22: =(Z21/$B21:$AC21)*$B9:$AC9 -> 1755.698826 | C22: =(Z21/$B21:$AC21)*$B9:$AC9 -> 1420.454545 | D22: =(Z21/$B21:$AC21)*$B9:$AC9 -> 1983.141817 | E22: =(Z21/$B21:$AC21)*$B9:$AC9 -> 1560.465116 | F22: =(Z21/$B21:$AC21)*$B9:$AC9 -> 1313.419981 | G22: =(Z21/$B21:$AC21)*$B9:$AC9 -> 1340.777211 | H22: =(Z21/$B21:$AC21)*$B9:$AC9 -> 1582.606891 | I22: =(Z21/$B21:$AC21)*$B9:$AC9 -> 1215.526861 | J22: =(Z21/$B21:$AC21)*$B9:$AC9 -> 1203.544267 | K22: =(Z21/$B21:$AC21)*$B9:$AC9 -> 1231.020995 | L22: =(Z21/$B21:$AC21)*$B9:$AC9 -> 1557.538393 | M22: =(Z21/$B21:$AC21)*$B9:$AC9 -> 1032.288635 | N22: =(Z21/$B21:$AC21)*$B9:$AC9 -> 1146.232636 | O22: =(Z21/$B21:$AC21)*$B9:$AC9 -> 2504.030332 | P22: =(Z21/$B21:$AC21)*$B9:$AC9 -> 887.1530716 | Q22: =(Z21/$B21:$AC21)*$B9:$AC9 -> 940.8669998 | R22: =(Z21/$B21:$AC21)*$B9:$AC9 -> 865.3955283 | S22: =(Z21/$B21:$AC21)*$B9:$AC9 -> 1228.038067 | T22: =(Z21/$B21:$AC21)*$B9:$AC9 -> 1812.240048 | U22: =(Z21/$B21:$AC21)*$B9:$AC9 -> 1987.559242 | V22: =(Z21/$B21:$AC21)*$B9:$AC9 -> 2256.645502 | W22: =(Z21/$B21:$AC21)*$B9:$AC9 -> 1606.154612 | X22: =(Z21/$B21:$AC21)*$B9:$AC9 -> 1692.751693 | Y22: =(Z21/$B21:$AC21)*$B9:$AC9 -> 1293.598711 | Z22: =(Z21/$B21:$AC21)*$B9:$AC9 -> 1250 | AA22: =(Z21/$B21:$AC21)*$B9:$AC9 -> 1062.192898 | AB22: =(Z21/$B21:$AC21)*$B9:$AC9 -> 1977.251297 | AC22: =(Z21/$B21:$AC21)*$B9:$AC9 -> 1658.493663
AH24: NZDUSD | AI24: 3.857142857 | AJ24: 3.714285714
C25: pips | D25: $ | E25: % | F25: pip value | AH25: USDCAD | AI25: 3.714285714 | AJ25: 6.857142857
B26: EURUSD | C26: 134.2 | D26: 1,342.0 | E26: 0.95 | F26: 1 | AH26: USDCHF | AI26: 3.714285714 | AJ26: 4.142857143
B27: GBPUSD | C27: 136.6 | D27: 1,366.2 | E27: 0.84 | F27: 1 | AH27: USDJPY | AI27: 3.714285714 | AJ27: 1.285714286
B28: USDCHF | C28: 101.4 | D28: 1,125.8 | E28: 1.12 | F28: 1.03
B29: USDJPY | C29: 81.9 | D29: 1,016.3 | E29: 1.01 | F29: 1.21
B30: EURGBP | C30: 68.6 | D30: 1,113.5 | E30: 0.79 | F30: 1.57
B31: EURCHF | C31: 132.3 | D31: 1,469.1 | E31: 1.03 | F31: 1.03
B32: EURJPY | C32: 134.3 | D32: 1,666.7 | E32: 1.17 | F32: 1.21
B33: GBPCHF | C33: 173.1 | D33: 1,921.8 | E33: 1.18 | F33: 1.03
B34: GBPJPY | C34: 160.2 | D34: 1,987.3 | E34: 1.21 | F34: 1.21
B35: CHFJPY | C35: 87.6 | D35: 1,087.0 | E35: 0.98 | F35: 1.21
B36: USDCAD | C36: 73.6 | D36: 748 | E36: 0.75 | F36: 1.01
B37: EURCAD | C37: 138 | D37: 1,402.6 | E37: 1 | F37: 1.01
B38: GBPCAD | C38: 144.9 | D38: 1,472.3 | E38: 0.91 | F38: 1.01
B39: CADCHF | C39: 124 | D39: 1,376.3 | E39: 1.34 | F39: 1.03
B40: CADJPY | C40: 103.4 | D40: 1,282.5 | E40: 1.25 | F40: 1.21
B41: AUDCAD | C41: 94.6 | D41: 961.9 | E41: 0.96 | F41: 1.01
B42: AUDUSD | C42: 107.5 | D42: 1,074.8 | E42: 1.07 | F42: 1
B43: EURAUD | C43: 139.4 | D43: 1,388.0 | E43: 0.99 | F43: 0.99
B44: AUDGBP | C44: 63.2 | D44: 1,025.9 | E44: 1.02 | F44: 1.06
B45: AUDCHF | C45: 125.9 | D45: 1,398.0 | E45: 1.38 | F45: 1.03
B46: AUDJPY | C46: 97.6 | D46: 1,211.3 | E46: 1.2 | F46: 1.21
B47: EURNZD | C47: 207.8 | D47: 1,517.4 | E47: 1.08 | F47: 0.76
B48: NZDUSD | C48: 84.4 | D48: 844.2 | E48: 1.15 | F48: 1
B49: GBPNZD | C49: 248.8 | D49: 1,816.6 | E49: 1.13 | F49: 0.76
B50: NZDCHF | C50: 98.2 | D50: 1,090.5 | E50: 1.48 | F50: 1.03
B51: NZDJPY | C51: 76.5 | D51: 949.2 | E51: 1.28 | F51: 1.21
B52: AUDNZD | C52: 111.3 | D52: 812.5 | E52: 0.81 | F52: 0.76
B53: NZDCAD | C53: 84 | D53: 853.5 | E53: 1.17 | F53: 1.01

Sheet List1 (hidden)

Sheet 28 párový prehľad
C4: AUDCAD | D4: AUDJPY | E4: AUDNZD | F4: AUDUSD | G4: CADCHF | H4: CADJPY | I4: CHFJPY | J4: EURAUD | K4: EURCAD | L4: EURCHF | M4: EURGBP | N4: EURJPY | O4: GBPCAD | P4: GBPAUD | Q4: GBPNZD | R4: GBPCHF | S4: GBPJPY | T4: GBPUSD | U4: NZDJPY | V4: NZDUSD | W4: USDCAD | X4: USDCHF | Y4: USDJPY | Z4: AUDCHF | AA4: EURUSD | AB4: EURNZD | AC4: NZDCAD | AD4: NZDCHF
B5: High | C5: =[1]!AUDCAD -> 1.0412 | D5: =[1]!AUDJPY -> 102.34 | E5: =[1]!AUDNZD -> 1.2081 | F5: =[1]!AUDUSD -> 1.0324 | G5: =[1]!CADCHF -> 0.93 | H5: =[1]!CADJPY -> 98.35 | I5: =[1]!CHFJPY -> 106.37 | J5: =[1]!EURAUD -> 1.2816 | K5: =[1]!EURCAD -> 1.3297 | L5: =[1]!EURCHF -> 1.2274 | M5: =[1]!EURGBP -> 0.845 | N5: =[1]!EURJPY -> 130.36 | O5: =[1]!GBPCAD -> 1.5744 | P5: =[1]!GBPAUD -> 1.517 | Q5: =[1]!GBPNZD -> 1.8283 | R5: =[1]!GBPCHF -> 1.4585 | S5: =[1]!GBPJPY -> 154.66 | T5: =[1]!GBPUSD -> 1.5601 | U5: =[1]!NZDJPY -> 84.71 | V5: =[1]!NZDUSD -> 0.855 | W5: =[1]!USDCAD -> 1.0133 | X5: =[1]!USDCHF -> 0.9399 | Y5: =[1]!USDJPY -> 99.26 | Z5: =[1]!AUDCHF -> 0.9653 | AA5: =[1]!EURUSD -> 1.3159 | AB5: =[1]!EURNZD -> 1.5445 | AC5: =[1]!NZDCAD -> 0.863 | AD5: =[1]!NZDCHF -> 0.8
B6: Ask | C6: =[2]!AUDCAD -> 1.0406 | D6: =[2]!AUDJPY -> 102.14 | E6: =[2]!AUDNZD -> 1.2104 | F6: =[2]!AUDUSD -> 1.0321 | G6: =[2]!CADCHF -> 0.9285 | H6: =[2]!CADJPY -> 98.28 | I6: =[2]!CHFJPY -> 105.85 | J6: =[2]!EURAUD -> 1.2719 | K6: =[2]!EURCAD -> 1.3224 | L6: =[2]!EURCHF -> 1.2268 | M6: =[2]!EURGBP -> 0.8425 | N6: =[2]!EURJPY -> 129.87 | O6: =[2]!GBPCAD -> 1.5703 | P6: =[2]!GBPAUD -> 1.5104 | Q6: =[2]!GBPNZD -> 1.8269 | R6: =[2]!GBPCHF -> 1.4571 | S6: =[2]!GBPJPY -> 154.22 | T6: =[2]!GBPUSD -> 1.5575 | U6: =[2]!NZDJPY -> 84.56 | V6: =[2]!NZDUSD -> 0.8536 | W6: =[2]!USDCAD -> 1.008 | X6: =[2]!USDCHF -> 0.9356 | Y6: =[2]!USDJPY -> 99.03 | Z6: =[2]!AUDCHF -> 0.966 | AA6: =[2]!EURUSD -> 1.3116 | AB6: =[2]!EURNZD -> 1.538 | AC6: =[2]!NZDCAD -> 0.8608 | AD6: =[2]!NZDCHF -> 0.7991
B7: Bid | C7: =[3]!AUDCAD -> 1.0397 | D7: =[3]!AUDJPY -> 102.1 | E7: =[3]!AUDNZD -> 1.2075 | F7: =[3]!AUDUSD -> 1.0318 | G7: =[3]!CADCHF -> 0.9278 | H7: =[3]!CADJPY -> 98.19 | I7: =[3]!CHFJPY -> 105.8 | J7: =[3]!EURAUD -> 1.2708 | K7: =[3]!EURCAD -> 1.3215 | L7: =[3]!EURCHF -> 1.2264 | M7: =[3]!EURGBP -> 0.8422 | N7: =[3]!EURJPY -> 129.84 | O7: =[3]!GBPCAD -> 1.5689 | P7: =[3]!GBPAUD -> 1.5085 | Q7: =[3]!GBPNZD -> 1.8235 | R7: =[3]!GBPCHF -> 1.4564 | S7: =[3]!GBPJPY -> 154.15 | T7: =[3]!GBPUSD -> 1.5572 | U7: =[3]!NZDJPY -> 84.42 | V7: =[3]!NZDUSD -> 0.8533 | W7: =[3]!USDCAD -> 1.0077 | X7: =[3]!USDCHF -> 0.9353 | Y7: =[3]!USDJPY -> 99 | Z7: =[3]!AUDCHF -> 0.9646 | AA7: =[3]!EURUSD -> 1.3113 | AB7: =[3]!EURNZD -> 1.5356 | AC7: =[3]!NZDCAD -> 0.8594 | AD7: =[3]!NZDCHF -> 0.7972
B8: Low | C8: =[4]!AUDCAD -> 1.0345 | D8: =[4]!AUDJPY -> 100.23 | E8: =[4]!AUDNZD -> 1.2013 | F8: =[4]!AUDUSD -> 1.0242 | G8: =[4]!CADCHF -> 0.9198 | H8: =[4]!CADJPY -> 96.71 | I8: =[4]!CHFJPY -> 104.67 | J8: =[4]!EURAUD -> 1.2685 | K8: =[4]!EURCAD -> 1.3172 | L8: =[4]!EURCHF -> 1.2207 | M8: =[4]!EURGBP -> 0.8405 | N8: =[4]!EURJPY -> 127.84 | O8: =[4]!GBPCAD -> 1.564 | P8: =[4]!GBPAUD -> 1.5069 | Q8: =[4]!GBPNZD -> 1.8178 | R8: =[4]!GBPCHF -> 1.4479 | S8: =[4]!GBPJPY -> 152.03 | T8: =[4]!GBPUSD -> 1.548 | U8: =[4]!NZDJPY -> 83.07 | V8: =[4]!NZDUSD -> 0.8473 | W8: =[4]!USDCAD -> 1.0073 | X8: =[4]!USDCHF -> 0.9302 | Y8: =[4]!USDJPY -> 97.87 | Z8: =[4]!AUDCHF -> 0.9539 | AA8: =[4]!EURUSD -> 1.3034 | AB8: =[4]!EURNZD -> 1.5298 | AC8: =[4]!NZDCAD -> 0.8565 | AD8: =[4]!NZDCHF -> 0.7909
A10: 12w | B10: Volatilita | C10: 69.7 | D10: 85.5 | E10: 71.5 | F10: 108.8 | G10: 76.8 | H10: 69 | I10: 88 | J10: 104.8 | K10: 98.7 | L10: 40.7 | M10: 58.7 | N10: 105.5 | O10: 114 | P10: 132.8 | Q10: 181.3 | R10: 111.9 | S10: 104.3 | T10: 116.4 | U10: 68 | V10: 86.1 | W10: 76.6 | X10: 93.3 | Y10: 45.9 | Z10: 85.7 | AA10: 127 | AB10: 152.2 | AC10: 61.5 | AD10: 71.4
B11: Dnes | C11: =(C5-C8)*10000 -> 67 | D11: =(D5-D8)*100 -> 211 | E11: =(E5-E8)*10000 -> 68 | F11: 82 | G11: 102 | H11: =(H5-H8)*100 -> 164 | I11: =(I5-I8)*100 -> 170 | J11: 131 | K11: 125 | L11: 67 | M11: 45 | N11: =(N5-N8)*100 -> 252 | O11: 104 | P11: 101 | Q11: 105 | R11: 106 | S11: =(S5-S8)*100 -> 263 | T11: 121 | U11: =(U5-U8)*100 -> 164 | V11: 77 | W11: 60 | X11: 97 | Y11: =(Y5-Y8)*100 -> 139 | Z11: 114 | AA11: 125 | AB11: 147 | AC11: 65 | AD11: 91
C12: =1/(C10/C11) -> 0.9612625538 | D12: =1/(D10/D11) -> 2.467836257 | E12: 0.951048951 | F12: 0.7536764706 | G12: 1.328125 | H12: 2.376811594 | I12: 1.931818182 | J12: 1.25 | K12: 1.266464032 | L12: 1.646191646 | M12: 0.7666098807 | N12: 2.388625592 | O12: 0.9122807018 | P12: 0.7605421687 | Q12: 0.5791505792 | R12: 0.9472743521 | S12: 2.521572387 | T12: 1.0395189 | U12: 2.411764706 | V12: 0.8943089431 | W12: 0.7832898172 | X12: 1.03965702 | Y12: 3.02832244 | Z12: 1.330221704 | AA12: 0.9842519685 | AB12: 0.9658344284 | AC12: 1.056910569 | AD12: 1.274509804
C16: Priemer: | D16: =SUM(C12:AD12)/28 -> 1.379210023 | F16: MIN: | G16: =MIN(C12:AD12) -> 0.5791505792 | I16: MAX: | J16: =MAX(C12:AD12) -> 3.02832244
B22: AUD | D22: AUDCAD | E22: AUDJPY | F22: AUDNZD | G22: AUDUSD | H22: EURAUD | I22: GBPAUD | J22: AUDCHF | M22: CAD | O22: AUDCAD | P22: CADCHF | Q22: CADJPY | R22: EURCAD | S22: GBPCAD | T22: USDCAD | U22: NZDCAD
C23: High | D23: =[1]!AUDCAD -> 1.0412 | E23: =[1]!AUDJPY -> 102.34 | F23: =[1]!AUDNZD -> 1.2081 | G23: =[1]!AUDUSD -> 1.0324 | H23: =[1]!EURAUD -> 1.2816 | I23: =[1]!GBPAUD -> 1.517 | J23: =[1]!AUDCHF -> 0.9653 | N23: High | O23: =[1]!AUDCAD -> 1.0412 | P23: =[1]!CADCHF -> 0.93 | Q23: =[1]!CADJPY -> 98.35 | R23: =[1]!EURCAD -> 1.3297 | S23: =[1]!GBPCAD -> 1.5744 | T23: =[1]!USDCAD -> 1.0133 | U23: =[1]!NZDCAD -> 0.863
A24: Priemer | B24: =SUM(D30:J30)/7 -> 1.210655444 | C24: Ask | D24: =[2]!AUDCAD -> 1.0406 | E24: =[2]!AUDJPY -> 102.14 | F24: =[2]!AUDNZD -> 1.2104 | G24: =[2]!AUDUSD -> 1.0321 | H24: =[2]!EURAUD -> 1.2719 | I24: =[2]!GBPAUD -> 1.5104 | J24: =[2]!AUDCHF -> 0.966 | L24: Priemer | M24: =SUM(O30:U30)/7 -> 1.240734896 | N24: Ask | O24: =[2]!AUDCAD -> 1.0406 | P24: =[2]!CADCHF -> 0.9285 | Q24: =[2]!CADJPY -> 98.28 | R24: =[2]!EURCAD -> 1.3224 | S24: =[2]!GBPCAD -> 1.5703 | T24: =[2]!USDCAD -> 1.008 | U24: =[2]!NZDCAD -> 0.8608
C25: Bid | D25: =[3]!AUDCAD -> 1.0397 | E25: =[3]!AUDJPY -> 102.1 | F25: =[3]!AUDNZD -> 1.2075 | G25: =[3]!AUDUSD -> 1.0318 | H25: =[3]!EURAUD -> 1.2708 | I25: =[3]!GBPAUD -> 1.5085 | J25: =[3]!AUDCHF -> 0.9646 | N25: Bid | O25: =[3]!AUDCAD -> 1.0397 | P25: =[3]!CADCHF -> 0.9278 | Q25: =[3]!CADJPY -> 98.19 | R25: =[3]!EURCAD -> 1.3215 | S25: =[3]!GBPCAD -> 1.5689 | T25: =[3]!USDCAD -> 1.0077 | U25: =[3]!NZDCAD -> 0.8594
A26: Min | B26: =MIN(D30:J30) -> 0.7536764706 | C26: Low | D26: =[4]!AUDCAD -> 1.0345 | E26: =[4]!AUDJPY -> 100.23 | F26: =[4]!AUDNZD -> 1.2013 | G26: =[4]!AUDUSD -> 1.0242 | H26: =[4]!EURAUD -> 1.2685 | I26: =[4]!GBPAUD -> 1.5069 | J26: =[4]!AUDCHF -> 0.9539 | L26: Min | M26: =MIN(O30:U30) -> 0.7832898172 | N26: Low | O26: =[4]!AUDCAD -> 1.0345 | P26: =[4]!CADCHF -> 0.9198 | Q26: =[4]!CADJPY -> 96.71 | R26: =[4]!EURCAD -> 1.3172 | S26: =[4]!GBPCAD -> 1.564 | T26: =[4]!USDCAD -> 1.0073 | U26: =[4]!NZDCAD -> 0.8565
A28: Max | B28: =MAX(D30:J30) -> 2.467836257 | C28: Volatilita | D28: 69.7 | E28: 85.5 | F28: 71.5 | G28: 108.8 | H28: 104.8 | I28: 132.8 | J28: 85.7 | L28: Max | M28: =MAX(O30:U30) -> 2.376811594 | N28: Volatilita | O28: 69.7 | P28: 76.8 | Q28: 69 | R28: 98.7 | S28: 114 | T28: 76.6 | U28: 61.5
C29: Dnes | D29: =(D23-D26)*10000 -> 67 | E29: =(E23-E26)*100 -> 211 | F29: =(F23-F26)*10000 -> 68 | G29: =(G23-G26)*10000 -> 82 | H29: =(H23-H26)*10000 -> 131 | I29: =(I23-I26)*10000 -> 101 | J29: =(J23-J26)*10000 -> 114 | N29: Dnes | O29: =(O23-O26)*10000 -> 67 | P29: =(P23-P26)*10000 -> 102 | Q29: =(Q23-Q26)*100 -> 164 | R29: =(R23-R26)*10000 -> 125 | S29: =(S23-S26)*10000 -> 104 | T29: =(T23-T26)*10000 -> 60 | U29: =(U23-U26)*10000 -> 65
D30: =1/(D28/D29) -> 0.9612625538 | E30: =1/(E28/E29) -> 2.467836257 | F30: 0.951048951 | G30: 0.7536764706 | H30: 1.25 | I30: 0.7605421687 | J30: 1.330221704 | O30: =1/(O28/O29) -> 0.9612625538 | P30: =1/(P28/P29) -> 1.328125 | Q30: 2.376811594 | R30: 1.266464032 | S30: 0.9122807018 | T30: 0.7832898172 | U30: 1.056910569
B34: EUR | D34: EURAUD | E34: EURCAD | F34: EURCHF | G34: EURGBP | H34: EURJPY | I34: EURUSD | J34: EURNZD | M34: GBP | O34: EURGBP | P34: GBPCAD | Q34: GBPAUD | R34: GBPNZD | S34: GBPCHF | T34: GBPJPY | U34: GBPUSD
C35: High | D35: =[1]!EURAUD -> 1.2816 | E35: =[1]!EURCAD -> 1.3297 | F35: =[1]!EURCHF -> 1.2274 | G35: =[1]!EURGBP -> 0.845 | H35: =[1]!EURJPY -> 130.36 | I35: =[1]!EURUSD -> 1.3159 | J35: =[1]!EURNZD -> 1.5445 | N35: High | O35: =[1]!EURGBP -> 0.845 | P35: =[1]!GBPCAD -> 1.5744 | Q35: =[1]!GBPAUD -> 1.517 | R35: =[1]!GBPNZD -> 1.8283 | S35: =[1]!GBPCHF -> 1.4585 | T35: =[1]!GBPJPY -> 154.66 | U35: =[1]!GBPUSD -> 1.5601
A36: Priemer | B36: =SUM(D42:J42)/7 -> 1.323996793 | C36: Ask | D36: =[2]!EURAUD -> 1.2719 | E36: =[2]!EURCAD -> 1.3224 | F36: =[2]!EURCHF -> 1.2268 | G36: =[2]!EURGBP -> 0.8425 | H36: =[2]!EURJPY -> 129.87 | I36: =[2]!EURUSD -> 1.3116 | J36: =[2]!EURNZD -> 1.538 | L36: Priemer | M36: =SUM(O42:U42)/7 -> 1.075278424 | N36: Ask | O36: =[2]!EURGBP -> 0.8425 | P36: =[2]!GBPCAD -> 1.5703 | Q36: =[2]!GBPAUD -> 1.5104 | R36: =[2]!GBPNZD -> 1.8269 | S36: =[2]!GBPCHF -> 1.4571 | T36: =[2]!GBPJPY -> 154.22 | U36: =[2]!GBPUSD -> 1.5575
C37: Bid | D37: =[3]!EURAUD -> 1.2708 | E37: =[3]!EURCAD -> 1.3215 | F37: =[3]!EURCHF -> 1.2264 | G37: =[3]!EURGBP -> 0.8422 | H37: =[3]!EURJPY -> 129.84 | I37: =[3]!EURUSD -> 1.3113 | J37: =[3]!EURNZD -> 1.5356 | N37: Bid | O37: =[3]!EURGBP -> 0.8422 | P37: =[3]!GBPCAD -> 1.5689 | Q37: =[3]!GBPAUD -> 1.5085 | R37: =[3]!GBPNZD -> 1.8235 | S37: =[3]!GBPCHF -> 1.4564 | T37: =[3]!GBPJPY -> 154.15 | U37: =[3]!GBPUSD -> 1.5572
A38: Min | B38: =MIN(D42:J42) -> 0.7666098807 | C38: Low | D38: =[4]!EURAUD -> 1.2685 | E38: =[4]!EURCAD -> 1.3172 | F38: =[4]!EURCHF -> 1.2207 | G38: =[4]!EURGBP -> 0.8405 | H38: =[4]!EURJPY -> 127.84 | I38: =[4]!EURUSD -> 1.3034 | J38: =[4]!EURNZD -> 1.5298 | L38: Min | M38: =MIN(O42:U42) -> 0.5791505792 | N38: Low | O38: =[4]!EURGBP -> 0.8405 | P38: =[4]!GBPCAD -> 1.564 | Q38: =[4]!GBPAUD -> 1.5069 | R38: =[4]!GBPNZD -> 1.8178 | S38: =[4]!GBPCHF -> 1.4479 | T38: =[4]!GBPJPY -> 152.03 | U38: =[4]!GBPUSD -> 1.548
A40: Max | B40: =MAX(D42:J42) -> 2.388625592 | C40: Volatilita | D40: 104.8 | E40: 98.7 | F40: 40.7 | G40: 58.7 | H40: 105.5 | I40: 127 | J40: 152.2 | L40: Max | M40: =MAX(O42:U42) -> 2.521572387 | N40: Volatilita | O40: 58.7 | P40: 114 | Q40: 132.8 | R40: 181.3 | S40: 111.9 | T40: 104.3 | U40: 116.4
C41: Dnes | D41: =(D35-D38)*10000 -> 131 | E41: =(E35-E38)*10000 -> 125 | F41: =(F35-F38)*10000 -> 67 | G41: =(G35-G38)*10000 -> 45 | H41: =(H35-H38)*100 -> 252 | I41: =(I35-I38)*10000 -> 125 | J41: =(J35-J38)*10000 -> 147 | N41: Dnes | O41: =(O35-O38)*10000 -> 45 | P41: =(P35-P38)*10000 -> 104 | Q41: =(Q35-Q38)*10000 -> 101 | R41: =(R35-R38)*10000 -> 105 | S41: =(S35-S38)*10000 -> 106 | T41: =(T35-T38)*100 -> 263 | U41: =(U35-U38)*10000 -> 121
D42: =1/(D40/D41) -> 1.25 | E42: 1.266464032 | F42: 1.646191646 | G42: 0.7666098807 | H42: 2.388625592 | I42: 0.9842519685 | J42: 0.9658344284 | O42: =1/(O40/O41) -> 0.7666098807 | P42: 0.9122807018 | Q42: 0.7605421687 | R42: 0.5791505792 | S42: 0.9472743521 | T42: 2.521572387 | U42: 1.0395189
B46: CHF | D46: CADCHF | E46: CHFJPY | F46: EURCHF | G46: GBPCHF | H46: USDCHF | I46: AUDCHF | J46: NZDCHF | M46: JPY | O46: AUDJPY | P46: CADJPY | Q46: CHFJPY | R46: EURJPY | S46: GBPJPY | T46: NZDJPY | U46: USDJPY
C47: High | D47: =[1]!CADCHF -> 0.93 | E47: =[1]!CHFJPY -> 106.37 | F47: =[1]!EURCHF -> 1.2274 | G47: =[1]!GBPCHF -> 1.4585 | H47: =[1]!USDCHF -> 0.9399 | I47: =[1]!AUDCHF -> 0.9653 | J47: =[1]!NZDCHF -> 0.8 | N47: High | O47: =[1]!AUDJPY -> 102.34 | P47: =[1]!CADJPY -> 98.35 | Q47: =[1]!CHFJPY -> 106.37 | R47: =[1]!EURJPY -> 130.36 | S47: =[1]!GBPJPY -> 154.66 | T47: =[1]!NZDJPY -> 84.71 | U47: =[1]!USDJPY -> 99.26
A48: Priemer | B48: =SUM(D54:J54)/7 -> 1.356828244 | C48: Ask | D48: =[2]!CADCHF -> 0.9285 | E48: =[2]!CHFJPY -> 105.85 | F48: =[2]!EURCHF -> 1.2268 | G48: =[2]!GBPCHF -> 1.4571 | H48: =[2]!USDCHF -> 0.9356 | I48: =[2]!AUDCHF -> 0.966 | J48: =[2]!NZDCHF -> 0.7991 | L48: Priemer | M48: =SUM(O54:U54)/7 -> 2.446678737 | N48: Ask | O48: =[2]!AUDJPY -> 102.14 | P48: =[2]!CADJPY -> 98.28 | Q48: =[2]!CHFJPY -> 105.85 | R48: =[2]!EURJPY -> 129.87 | S48: =[2]!GBPJPY -> 154.22 | T48: =[2]!NZDJPY -> 84.56 | U48: =[2]!USDJPY -> 99.03
C49: Bid | D49: =[3]!CADCHF -> 0.9278 | E49: =[3]!CHFJPY -> 105.8 | F49: =[3]!EURCHF -> 1.2264 | G49: =[3]!GBPCHF -> 1.4564 | H49: =[3]!USDCHF -> 0.9353 | I49: =[3]!AUDCHF -> 0.9646 | J49: =[3]!NZDCHF -> 0.7972 | N49: Bid | O49: =[3]!AUDJPY -> 102.1 | P49: =[3]!CADJPY -> 98.19 | Q49: =[3]!CHFJPY -> 105.8 | R49: =[3]!EURJPY -> 129.84 | S49: =[3]!GBPJPY -> 154.15 | T49: =[3]!NZDJPY -> 84.42 | U49: =[3]!USDJPY -> 99
A50: Min | B50: =MIN(D54:J54) -> 0.9472743521 | C50: Low | D50: =[4]!CADCHF -> 0.9198 | E50: =[4]!CHFJPY -> 104.67 | F50: =[4]!EURCHF -> 1.2207 | G50: =[4]!GBPCHF -> 1.4479 | H50: =[4]!USDCHF -> 0.9302 | I50: =[4]!AUDCHF -> 0.9539 | J50: =[4]!NZDCHF -> 0.7909 | L50: Min | M50: =MIN(O54:U54) -> 1.931818182 | N50: Low | O50: =[4]!AUDJPY -> 100.23 | P50: =[4]!CADJPY -> 96.71 | Q50: =[4]!CHFJPY -> 104.67 | R50: =[4]!EURJPY -> 127.84 | S50: =[4]!GBPJPY -> 152.03 | T50: =[4]!NZDJPY -> 83.07 | U50: =[4]!USDJPY -> 97.87
A52: Max | B52: =MAX(D54:J54) -> 1.931818182 | C52: Volatilita | D52: 76.8 | E52: 88 | F52: 40.7 | G52: 111.9 | H52: 93.3 | I52: 85.7 | J52: 71.4 | L52: Max | M52: =MAX(O54:U54) -> 3.02832244 | N52: Volatilita | O52: 85.5 | P52: 69 | Q52: 88 | R52: 105.5 | S52: 104.3 | T52: 68 | U52: 45.9
C53: Dnes | D53: =(D47-D50)*10000 -> 102 | E53: =(E47-E50)*100 -> 170 | F53: =(F47-F50)*10000 -> 67 | G53: =(G47-G50)*10000 -> 106 | H53: =(H47-H50)*10000 -> 97 | I53: =(I47-I50)*10000 -> 114 | J53: =(J47-J50)*10000 -> 91 | N53: Dnes | O53: =(O47-O50)*100 -> 211 | P53: 164 | Q53: 170 | R53: 252 | S53: 263 | T53: 164 | U53: 139
D54: =1/(D52/D53) -> 1.328125 | E54: 1.931818182 | F54: 1.646191646 | G54: 0.9472743521 | H54: 1.03965702 | I54: 1.330221704 | J54: 1.274509804 | O54: =1/(O52/O53) -> 2.467836257 | P54: 2.376811594 | Q54: 1.931818182 | R54: 2.388625592 | S54: 2.521572387 | T54: 2.411764706 | U54: 3.02832244
B58: NZD | D58: GBPNZD | E58: NZDJPY | F58: NZDUSD | G58: EURNZD | H58: NZDCAD | I58: NZDCHF | J58: AUDNZD | M58: USD | O58: AUDUSD | P58: GBPUSD | Q58: NZDUSD | R58: USDCAD | S58: USDCHF | T58: USDJPY | U58: EURUSD
C59: High | D59: =[1]!GBPNZD -> 1.8283 | E59: =[1]!NZDJPY -> 84.71 | F59: =[1]!NZDUSD -> 0.855 | G59: =[1]!EURNZD -> 1.5445 | H59: =[1]!NZDCAD -> 0.863 | I59: =[1]!NZDCHF -> 0.8 | J59: =[1]!AUDNZD -> 1.2081 | N59: High | O59: =[1]!AUDUSD -> 1.0324 | P59: =[1]!GBPUSD -> 1.5601 | Q59: =[1]!NZDUSD -> 0.855 | R59: =[1]!USDCAD -> 1.0133 | S59: =[1]!USDCHF -> 0.9399 | T59: =[1]!USDJPY -> 99.26 | U59: =[1]!EURUSD -> 1.3159
A60: Priemer | B60: =SUM(D66:J66)/7 -> 1.161932569 | C60: Ask | D60: =[2]!GBPNZD -> 1.8269 | E60: =[2]!NZDJPY -> 84.56 | F60: =[2]!NZDUSD -> 0.8536 | G60: =[2]!EURNZD -> 1.538 | H60: =[2]!NZDCAD -> 0.8608 | I60: =[2]!NZDCHF -> 0.7991 | J60: =[2]!AUDNZD -> 1.2104 | L60: Priemer | M60: =SUM(O66:U66)/7 -> 1.21757508 | N60: Ask | O60: =[2]!AUDUSD -> 1.0321 | P60: =[2]!GBPUSD -> 1.5575 | Q60: =[2]!NZDUSD -> 0.8536 | R60: =[2]!USDCAD -> 1.008 | S60: =[2]!USDCHF -> 0.9356 | T60: =[2]!USDJPY -> 99.03 | U60: =[2]!EURUSD -> 1.3116
C61: Bid | D61: =[3]!GBPNZD -> 1.8235 | E61: =[3]!NZDJPY -> 84.42 | F61: =[3]!NZDUSD -> 0.8533 | G61: =[3]!EURNZD -> 1.5356 | H61: =[3]!NZDCAD -> 0.8594 | I61: =[3]!NZDCHF -> 0.7972 | J61: =[3]!AUDNZD -> 1.2075 | N61: Bid | O61: =[3]!AUDUSD -> 1.0318 | P61: =[3]!GBPUSD -> 1.5572 | Q61: =[3]!NZDUSD -> 0.8533 | R61: =[3]!USDCAD -> 1.0077 | S61: =[3]!USDCHF -> 0.9353 | T61: =[3]!USDJPY -> 99 | U61: =[3]!EURUSD -> 1.3113
A62: Min | B62: =MIN(D66:J66) -> 0.5791505792 | C62: Low | D62: =[4]!GBPNZD -> 1.8178 | E62: =[4]!NZDJPY -> 83.07 | F62: =[4]!NZDUSD -> 0.8473 | G62: =[4]!EURNZD -> 1.5298 | H62: =[4]!NZDCAD -> 0.8565 | I62: =[4]!NZDCHF -> 0.7909 | J62: =[4]!AUDNZD -> 1.2013 | L62: Min | M62: =MIN(O66:U66) -> 0.7536764706 | N62: Low | O62: =[4]!AUDUSD -> 1.0242 | P62: =[4]!GBPUSD -> 1.548 | Q62: =[4]!NZDUSD -> 0.8473 | R62: =[4]!USDCAD -> 1.0073 | S62: =[4]!USDCHF -> 0.9302 | T62: =[4]!USDJPY -> 97.87 | U62: =[4]!EURUSD -> 1.3034
A64: Max | B64: =MAX(D66:J66) -> 2.411764706 | C64: Volatilita | D64: 181.3 | E64: 68 | F64: 86.1 | G64: 152.2 | H64: 61.5 | I64: 71.4 | J64: 71.5 | L64: Max | M64: =MAX(O66:U66) -> 3.02832244 | N64: Volatilita | O64: 108.8 | P64: 116.4 | Q64: 86.1 | R64: 76.6 | S64: 93.3 | T64: 45.9 | U64: 127
C65: Dnes | D65: =(D59-D62)*10000 -> 105 | E65: =(E59-E62)*100 -> 164 | F65: =(F59-F62)*10000 -> 77 | G65: =(G59-G62)*10000 -> 147 | H65: =(H59-H62)*10000 -> 65 | I65: =(I59-I62)*10000 -> 91 | J65: =(J59-J62)*10000 -> 68 | N65: Dnes | O65: =(O59-O62)*10000 -> 82 | P65: =(P59-P62)*10000 -> 121 | Q65: =(Q59-Q62)*10000 -> 77 | R65: =(R59-R62)*10000 -> 60 | S65: =(S59-S62)*10000 -> 97 | T65: =(T59-T62)*100 -> 139 | U65: =(U59-U62)*10000 -> 125
D66: =1/(D64/D65) -> 0.5791505792 | E66: 2.411764706 | F66: 0.8943089431 | G66: 0.9658344284 | H66: 1.056910569 | I66: 1.274509804 | J66: 0.951048951 | O66: =1/(O64/O65) -> 0.7536764706 | P66: 1.0395189 | Q66: 0.8943089431 | R66: 0.7832898172 | S66: 1.03965702 | T66: 3.02832244 | U66: 0.9842519685

Sheet Poriadok
A2: 29/2/2012 | C2: aud | D2: CADAUD | E2: JPYAUD | F2: NZDAUD | G2: USDAUD | H2: EURAUD | I2: GBPAUD | J2: CHFAUD | N2: cad | O2: AUDCAD | P2: CHFCAD | Q2: JPYCAD | R2: EURCAD | S2: GBPCAD | T2: USDCAD | U2: NZDCAD
A3: 20:00:00 | D3: =0.9676 -> 0.9676 | E3: =0.98723 -> 0.98723 | F3: =0.7856 -> 0.7856 | G3: =0.9624 -> 0.9624 | H3: 1.2801 | I3: 1.5128 | J3: =1.044 -> 1.044 | O3: 1.0146 | P3: =1.0986 -> 1.0986 | Q3: =1.03649 -> 1.03649 | R3: 1.3325 | S3: 1.5429 | T3: 1.0255 | U3: 0.8546
I4: \
C5: eur | D5: AUDEUR | E5: CADEUR | F5: CHFEUR | G5: GBPEUR | H5: JPYEUR | I5: USDEUR | J5: NZDEUR | N5: gbp | O5: EURGBP | P5: CADGBP | Q5: AUDGBP | R5: NZDGBP | S5: CHFGBP | T5: JPYGBP | U5: USDGBP
D6: =0.773 -> 0.773 | E6: =0.7378 -> 0.7378 | F6: =0.8218 -> 0.8218 | G6: 1.1405 | H6: =0.7684 -> 0.7684 | I6: =0.7434 -> 0.7434 | J6: 0.628 | O6: 0.868 | P6: =0.614 -> 0.614 | Q6: =0.6891 -> 0.6891 | R6: =0.5087 -> 0.5087 | S6: =0.6591 -> 0.6591 | T6: =0.6982 -> 0.6982 | U6: =0.6525 -> 0.6525
C8: chf | D8: CADCHF | E8: JPYCHF | F8: EURCHF | G8: GBPCHF | H8: USDCHF | I8: AUDCHF | J8: NZDCHF | N8: jpy | O8: AUDJPY | P8: CADJPY | Q8: CHFJPY | R8: EURJPY | S8: GBPJPY | T8: NZDJPY | U8: USDJPY
D9: 0.9529 | E9: =0.98 -> 0.98 | F9: 1.2471 | G9: 1.4465 | H9: 0.9469 | I9: 0.993 | J9: 0.7492 | O9: 1.0304 | P9: 0.9839 | Q9: 1.0683 | R9: 1.3087 | S9: 1.5281 | T9: 0.8619 | U9: 0.9965
C11: nzd | D11: GBPNZD | E11: JPYNZD | F11: USDNZD | G11: EURNZD | H11: CADNZD | I11: CHFNZD | J11: AUDNZD | N11: usd | O11: AUDUSD | P11: GBPUSD | Q11: NZDUSD | R11: CADUSD | S11: CHFUSD | T11: JPYUSD | U11: EURUSD
D12: 1.7942 | E12: 1.2031 | F12: =1.1907 -> 1.1907 | G12: 1.5555 | H12: 1.1863 | I12: =1.2568 -> 1.2568 | J12: 1.2085 | O12: 1.0173 | P12: 1.5302 | Q12: 0.8095 | R12: =0.9774 -> 0.9774 | S12: =1.0861 -> 1.0861 | T12: =1.037 -> 1.037 | U12: 1.3027
A16: Aktuálny kurz | B16: AUD | D16: CADAUD | E16: JPYAUD | F16: NZDAUD | G16: USDAUD | H16: EURAUD | I16: GBPAUD | J16: CHFAUD | K16: pv | M16: CAD | O16: AUDCAD | P16: CHFCAD | Q16: JPYCAD | R16: EURCAD | S16: GBPCAD | T16: USDCAD | U16: NZDCAD | V16: pv
C17: Ask | D17: =1/[2]!AUDCAD -> 0.9609840477 | E17: =1/[2]!AUDJPY*100 -> 0.979048365 | F17: =1/[2]!AUDNZD -> 0.8261731659 | G17: =1/[2]!AUDUSD -> 0.9688983626 | H17: =[2]!EURAUD -> 1.2719 | I17: =[2]!GBPAUD -> 1.5104 | J17: =1/[2]!AUDCHF -> 1.035196687 | K17: =(0.0001/G19)*10000 -> 1.031949978 | N17: Ask | O17: =[2]!AUDCAD -> 1.0406 | P17: =1/[2]!CADCHF -> 1.077005924 | Q17: =1/[2]!CADJPY*100 -> 1.017501018 | R17: =[2]!EURCAD -> 1.3224 | S17: =[2]!GBPCAD -> 1.5703 | T17: =[2]!USDCAD -> 1.008 | U17: =[2]!NZDCAD -> 0.8608 | V17: =(0.0001/T19)*10000 -> 0.9922111425
C18: Bid | D18: =1/[3]!AUDCAD -> 0.9618159084 | E18: =1/[3]!AUDJPY*100 -> 0.9794319295 | F18: =1/[3]!AUDNZD -> 0.8281573499 | G18: =1/[3]!AUDUSD -> 0.9691800737 | H18: =[3]!EURAUD -> 1.2708 | I18: =[3]!GBPAUD -> 1.5085 | J18: =1/[3]!AUDCHF -> 1.03669915 | N18: Bid | O18: =[3]!AUDCAD -> 1.0397 | P18: =1/[3]!CADCHF -> 1.077818495 | Q18: =1/[3]!CADJPY*100 -> 1.018433649 | R18: =[3]!EURCAD -> 1.3215 | S18: =[3]!GBPCAD -> 1.5689 | T18: =[3]!USDCAD -> 1.0077 | U18: =[3]!NZDCAD -> 0.8594
C19: Priemer | D19: =(D17+D18)/2 -> 0.961399978 | E19: =(E17+E18)/2 -> 0.9792401472 | F19: 0.8271652579 | G19: 0.9690392181 | H19: 1.27135 | I19: 1.50945 | J19: 1.035947919 | N19: Priemer | O19: =(O17+O18)/2 -> 1.04015 | P19: =(P17+P18)/2 -> 1.077412209 | Q19: 1.017967333 | R19: 1.32195 | S19: 1.5696 | T19: 1.00785 | U19: 0.8601
C20: spread | D20: =ABS(D17-D18)*10000 -> 8.318607703 | E20: =ABS(E17-E18)*10000 -> 3.835644917 | F20: 19.84184001 | G20: 2.817110959 | H20: 11 | I20: 19 | J20: 15.02462536 | K20: =SUM(D20:J20) -> 79.83782895 | N20: spread | O20: =ABS(O17-O18)*10000 -> 9 | P20: =ABS(P17-P18)*10000 -> 8.125718328 | Q20: 9.326315467 | R20: 9 | S20: 14 | T20: 3 | U20: 14 | V20: =SUM(O20:U20) -> 66.4520338
B22: EUR | D22: AUDEUR | E22: CADEUR | F22: CHFEUR | G22: GBPEUR | H22: JPYEUR | I22: USDEUR | J22: NZDEUR | K22: pv | M22: GBP | O22: EURGBP | P22: CADGBP | Q22: AUDGBP | R22: NZDGBP | S22: CHFGBP | T22: JPYGBP | U22: USDGBP | V22: pv
C23: Ask | D23: =1/[2]!EURAUD -> 0.7862253322 | E23: =1/[2]!EURCAD -> 0.7562008469 | F23: =1/[2]!EURCHF -> 0.8151287903 | G23: =1/[2]!EURGBP -> 1.18694362 | H23: =1/[2]!EURJPY*100 -> 0.77000077 | I23: =1/[2]!EURUSD -> 0.7624275694 | J23: =1/[2]!EURNZD -> 0.6501950585 | K23: =(0.0001/I25)*10000 -> 1.311449983 | N23: Ask | O23: =[2]!EURGBP -> 0.8425 | P23: =1/[2]!GBPCAD -> 0.6368209896 | Q23: =1/[2]!GBPAUD -> 0.6620762712 | R23: =1/[2]!GBPNZD -> 0.5473753353 | S23: =1/[2]!GBPCHF -> 0.6862946949 | T23: =1/[2]!GBPJPY*100 -> 0.6484243289 | U23: =1/[2]!GBPUSD -> 0.6420545746 | V23: =(0.0001/U25)*10000 -> 1.557349986
C24: Bid | D24: =1/[3]!EURAUD -> 0.7869058861 | E24: =1/[3]!EURCAD -> 0.7567158532 | F24: =1/[3]!EURCHF -> 0.815394651 | G24: =1/[3]!EURGBP -> 1.187366421 | H24: =1/[3]!EURJPY*100 -> 0.7701786815 | I24: =1/[3]!EURUSD -> 0.762601998 | J24: =1/[3]!EURNZD -> 0.6512112529 | N24: Bid | O24: =[3]!EURGBP -> 0.8422 | P24: =1/[3]!GBPCAD -> 0.6373892536 | Q24: =1/[3]!GBPAUD -> 0.6629101757 | R24: =1/[3]!GBPNZD -> 0.5483959419 | S24: =1/[3]!GBPCHF -> 0.6866245537 | T24: =1/[3]!GBPJPY*100 -> 0.6487187804 | U24: =1/[3]!GBPUSD -> 0.6421782687
C25: Priemer | D25: =(D23+D24)/2 -> 0.7865656091 | E25: =(E23+E24)/2 -> 0.7564583501 | F25: 0.8152617207 | G25: 1.187155021 | H25: 0.7700897257 | I25: 0.7625147837 | J25: 0.6507031557 | N25: Priemer | O25: =(O23+O24)/2 -> 0.84235 | P25: =(P23+P24)/2 -> 0.6371051216 | Q25: 0.6624932234 | R25: 0.5478856386 | S25: 0.6864596243 | T25: 0.6485715546 | U25: 0.6421164217
C26: spread | D26: =ABS(D23-D24)*10000 -> 6.805538758 | E26: =ABS(E23-E24)*10000 -> 5.150062522 | F26: 2.658606622 | G26: 4.228010996 | H26: 1.779114533 | I26: 1.744286363 | J26: 10.16194413 | K26: =SUM(D26:J26) -> 32.52756392 | N26: spread | O26: =ABS(O23-O24)*10000 -> 3 | P26: =ABS(P23-P24)*10000 -> 5.682639974 | Q26: 8.339044848 | R26: 10.20606603 | S26: 3.29858752 | T26: 2.944515279 | U26: 1.236940485 | V26: =SUM(O26:U26) -> 34.70779413
B28: CHF | D28: CADCHF | E28: JPYCHF | F28: EURCHF | G28: GBPCHF | H28: USDCHF | I28: AUDCHF | J28: NZDCHF | K28: pv | M28: JPY | O28: AUDJPY | P28: CADJPY | Q28: CHFJPY | R28: EURJPY | S28: GBPJPY | T28: NZDJPY | U28: USDJPY | V28: pv
C29: Ask | D29: =[2]!CADCHF -> 0.9285 | E29: =1/[2]!CHFJPY*100 -> 0.9447331129 | F29: =[2]!EURCHF -> 1.2268 | G29: =[2]!GBPCHF -> 1.4571 | H29: =[2]!USDCHF -> 0.9356 | I29: =[2]!AUDCHF -> 0.966 | J29: =[2]!NZDCHF -> 0.7991 | K29: =(0.0001/H31)*10000 -> 1.069004223 | N29: Ask | O29: =[2]!AUDJPY/100 -> 1.0214 | P29: =[2]!CADJPY/100 -> 0.9828 | Q29: =[2]!CHFJPY/100 -> 1.0585 | R29: =[2]!EURJPY/100 -> 1.2987 | S29: =[2]!GBPJPY/100 -> 1.5422 | T29: =[2]!NZDJPY/100 -> 0.8456 | U29: =[2]!USDJPY/100 -> 0.9903 | V29: =(0.0001/U31)*10000 -> 1.009947988
C30: Bid | D30: =[3]!CADCHF -> 0.9278 | E30: =1/[3]!CHFJPY*100 -> 0.9451795841 | F30: =[3]!EURCHF -> 1.2264 | G30: =[3]!GBPCHF -> 1.4564 | H30: =[3]!USDCHF -> 0.9353 | I30: =[3]!AUDCHF -> 0.9646 | J30: =[3]!NZDCHF -> 0.7972 | N30: Bid | O30: =[3]!AUDJPY/100 -> 1.021 | P30: =[3]!CADJPY/100 -> 0.9819 | Q30: =[3]!CHFJPY/100 -> 1.058 | R30: =[3]!EURJPY/100 -> 1.2984 | S30: =[3]!GBPJPY/100 -> 1.5415 | T30: =[3]!NZDJPY/100 -> 0.8442 | U30: =[3]!USDJPY/100 -> 0.99
C31: Priemer | D31: =(D29+D30)/2 -> 0.92815 | E31: =(E29+E30)/2 -> 0.9449563485 | F31: 1.2266 | G31: 1.45675 | H31: 0.93545 | I31: 0.9653 | J31: 0.79815 | N31: Priemer | O31: =(O29+O30)/2 -> 1.0212 | P31: =(P29+P30)/2 -> 0.98235 | Q31: 1.05825 | R31: 1.29855 | S31: 1.54185 | T31: 0.8449 | U31: 0.99015
C32: spread | D32: =ABS(D29-D30)*10000 -> 7 | E32: =ABS(E29-E30)*10000 -> 4.464712254 | F32: 4 | G32: 7 | H32: 3 | I32: 14 | J32: 19 | K32: =SUM(D32:J32) -> 58.46471225 | N32: spread | O32: =ABS(O29-O30)*10000 -> 4 | P32: =ABS(P29-P30)*10000 -> 9 | Q32: 5 | R32: 3 | S32: 7 | T32: 14 | U32: 3 | V32: =SUM(O32:U32) -> 45
B34: NZD | D34: GBPNZD | E34: JPYNZD | F34: USDNZD | G34: EURNZD | H34: CADNZD | I34: CHFNZD | J34: AUDNZD | K34: pv | M34: USD | O34: AUDUSD | P34: GBPUSD | Q34: NZDUSD | R34: CADUSD | S34: CHFUSD | T34: JPYUSD | U34: EURUSD | V34: pv
C35: Ask | D35: =[2]!GBPNZD -> 1.8269 | E35: =1/[2]!NZDJPY*100 -> 1.182592242 | F35: =1/[2]!NZDUSD -> 1.171508903 | G35: =[2]!EURNZD -> 1.538 | H35: =1/[2]!NZDCAD -> 1.161710037 | I35: =1/[2]!NZDCHF -> 1.251407834 | J35: =[2]!AUDNZD -> 1.2104 | K35: =(0.0001/F37)*10000 -> 0.8534499736 | N35: Ask | O35: =[2]!AUDUSD -> 1.0321 | P35: =[2]!GBPUSD -> 1.5575 | Q35: =[2]!NZDUSD -> 0.8536 | R35: =1/[2]!USDCAD -> 0.9920634921 | S35: =1/[2]!USDCHF -> 1.068832835 | T35: =1/[2]!USDJPY*100 -> 1.009795012 | U35: =[2]!EURUSD -> 1.3116 | V35: 1
C36: Bid | D36: =[3]!GBPNZD -> 1.8235 | E36: =1/[3]!NZDJPY*100 -> 1.184553423 | F36: =1/[3]!NZDUSD -> 1.171920778 | G36: =[3]!EURNZD -> 1.5356 | H36: =1/[3]!NZDCAD -> 1.163602513 | I36: =1/[3]!NZDCHF -> 1.254390366 | J36: =[3]!AUDNZD -> 1.2075 | N36: Bid | O36: =[3]!AUDUSD -> 1.0318 | P36: =[3]!GBPUSD -> 1.5572 | Q36: =[3]!NZDUSD -> 0.8533 | R36: =1/[3]!USDCAD -> 0.992358837 | S36: =1/[3]!USDCHF -> 1.069175666 | T36: =1/[3]!USDJPY*100 -> 1.01010101 | U36: =[3]!EURUSD -> 1.3113
C37: Priemer | D37: =(D35+D36)/2 -> 1.8252 | E37: =(E35+E36)/2 -> 1.183572833 | F37: 1.171714841 | G37: 1.5368 | H37: 1.162656275 | I37: 1.2528991 | J37: 1.20895 | N37: Priemer | O37: =(O35+O36)/2 -> 1.03195 | P37: =(P35+P36)/2 -> 1.55735 | Q37: 0.85345 | R37: 0.9922111645 | S37: 1.06900425 | T37: 1.009948011 | U37: 1.31145
C38: spread | D38: =ABS(D35-D36)*10000 -> 34 | E38: =ABS(E35-E36)*10000 -> 19.61181165 | F38: 4.118746877 | G38: 24 | H38: 18.92476207 | I38: 29.82532469 | J38: 29 | K38: =SUM(D38:J38) -> 159.4806453 | N38: spread | O38: =ABS(O35-O36)*10000 -> 3 | P38: =ABS(P35-P36)*10000 -> 3 | Q38: 3 | R38: 2.95344892 | S38: 3.428310172 | T38: 3.059984884 | U38: 3 | V38: =SUM(O38:U38) -> 21.44174397
A41: Rozdiely | C41: aud | D41: NZDAUD | E41: GBPAUD | F41: CADAUD | G41: USDAUD | H41: CHFAUD | I41: EURAUD | J41: JPYAUD | N41: cad | O41: NZDCAD | P41: GBPCAD | Q41: CHFCAD | R41: USDCAD | S41: AUDCAD | T41: EURCAD | U41: JPYCAD
C42: =(F42+J42+D42+G42+I42+E42+H42)*W53 -> -138.6251993 | D42: =((F19-F3))*10000 -> 415.652579 | E42: =((I19-I3))*10000 -> -33.5 | F42: =((D19-D3))*10000 -> -62.0002195 | G42: =((G19-G3))*10000 -> 66.3921811 | H42: =((J19-J3))*10000 -> -80.52081361 | I42: =((H19-H3))*10000 -> -87.5 | J42: =((E19-E3))*10000 -> -79.89852765 | N42: =(S42+Q42+U42+T42+P42+R42+O42)*W53 -> 101.6045728 | O42: =(U19-U3)*10000 -> 55 | P42: =(S19-S3)*10000 -> 267 | Q42: =(P19-P3)*10000 -> -211.8779055 | R42: =(T19-T3)*10000 -> -176.5 | S42: =(O19-O3)*10000 -> 255.5 | T42: =(R19-R3)*10000 -> -105.5 | U42: =(Q19-Q3)*10000 -> -185.2266673
C44: eur | D44: NZDEUR | E44: CADEUR | F44: CHFEUR | G44: USDEUR | H44: GBPEUR | I44: AUDEUR | J44: JPYEUR | N44: gbp | O44: NZDGBP | P44: CHFGBP | Q44: CADGBP | R44: USDGBP | S44: AUDGBP | T44: EURGBP | U44: JPYGBP
C45: =(I45+E45+F45+H45+J45+G45+D45)*W53 -> -785.3166561 | D45: =((J25-J6))*10000 -> 227.0315572 | E45: =((E6-E25))*10000 -> -186.5835007 | F45: =((F25-F6))*10000 -> -65.3827932 | G45: =((I25-I6))*10000 -> 191.147837 | H45: =((G25-G6))*10000 -> 466.5502073 | I45: =((D25-D6))*10000 -> 135.6560912 | J45: =((H25-H6))*10000 -> 16.89725727 | N45: =(T45+Q45+S45+O45+P45+U45+R45)*W53 -> 226.1841576 | O45: =(R25-R6)*10000 -> 391.8563857 | P45: =(S25-S6)*10000 -> 273.5962432 | Q45: =(P25-P6)*10000 -> 231.0512162 | R45: =(U25-U6)*10000 -> -103.8357834 | S45: =(Q25-Q6)*10000 -> -266.0677657 | T45: =(O25-O6)*10000 -> -256.5 | U45: =(T25-T6)*10000 -> -496.2844536
C47: chf | D47: NZDCHF | E47: CADCHF | F47: GBPCHF | G47: USDCHF | H47: EURCHF | I47: AUDCHF | J47: JPYCHF | N47: jpy | O47: GBPJPY | P47: CADJPY | Q47: CHFJPY | R47: USDJPY | S47: AUDJPY | T47: NZDJPY | U47: EURJPY
C48: =(E48+J48+H48+F48+G48+I48+D48)*W53 -> 107.4365149 | D48: =(J31-J9)*10000 -> 489.5 | E48: =(D9-D31)*10000 -> 247.5 | F48: =(G31-G9)*10000 -> 102.5 | G48: =(H31-H9)*10000 -> -114.5 | H48: =(F31-F9)*10000 -> -205 | I48: =(I31-I9)*10000 -> -277 | J48: =(E31-E9)*10000 -> -350.4365149 | N48: =(S48+P48+Q48+U48+O48+T48+R48)*W53 -> 405.5 | O48: =(S31-S9)*10000 -> 137.5 | P48: =(P31-P9)*10000 -> -15.5 | Q48: -100.5 | R48: =(U31-U9)*10000 -> -63.5 | S48: =(O31-O9)*10000 -> -92 | T48: -170 | U48: =(R31-R9)*10000 -> -101.5
C50: nzd | D50: GBPNZD | E50: CADNZD | F50: CHFNZD | G50: USDNZD | H50: EURNZD | I50: AUDNZD | J50: JPYNZD | N50: usd | O50: NZDUSD | P50: CHFUSD | Q50: GBPUSD | R50: AUDUSD | S50: CADUSD | T50: EURUSD | U50: JPYUSD
C51: =(D51+J51+G51+H51+E51+F51+I51)*W53 -> 533.0695109 | D51: =(D37-D12)*10000 -> 310 | E51: =(H37-H12)*10000 -> -236.4372472 | F51: =(I37-I12)*10000 -> -39.00899952 | G51: =(F37-F12)*10000 -> -189.8515919 | H51: =(G37-G12)*10000 -> -187 | I51: =(J37-J12)*10000 -> 4.5 | J51: =(E37-E12)*10000 -> -195.2716722 | N51: =(R51+Q51+O51+S51+P51+U51+T51)*W53 -> -651.6342542 | O51: =(Q37-Q12)*10000 -> 439.5 | P51: =(S37-S12)*10000 -> -170.9574995 | Q51: =(P37-P12)*10000 -> 271.5 | R51: =(O37-O12)*10000 -> 146.5 | S51: =(R37-R12)*10000 -> 148.1116451 | T51: =(U37-U12)*10000 -> 87.5 | U51: =(T37-T12)*10000 -> -270.5198914
W53: =-1 -> -1
W54: 1
C55: aud | D55: eur | E55: chf | F55: nzd | G55: cad | H55: gbp | I55: jpy | J55: usd | K55: AVG | L55: SUM | N55: aud | O55: eur | P55: chf | Q55: nzd | R55: cad | S55: gbp | T55: jpy | U55: usd
C56: =C42*K17 -> -143.0542714 | D56: =C45*K23 -> -1029.903515 | E56: =C48*K29 -> 114.8500881 | F56: =C51*K35 -> 454.94816 | G56: =N42*V17 -> 100.8131892 | H56: =N45*V23 -> 352.2478945 | I56: =N48*V29 -> 409.533909 | J56: =N51*V35 -> -651.6342542 | K56: =(C56+D56+E56+F56+G56+H56+I56+J56)/8 -> -49.02484998 | L56: =SUM(C56:J56) -> -392.1987998 | N56: =ABS(C56) -> 143.0542714 | O56: 1029.903515 | P56: 114.8500881 | Q56: 454.94816 | R56: 100.8131892 | S56: 352.2478945 | T56: 409.533909 | U56: 651.6342542 | V56: =SUM(N56:U56) -> 3256.985282
B57: MAX | C57: 0.2452604868 | D57: -0.1671617282 | E57: -0.1772018866 | F57: 0.003233203288 | G57: 0.1257911469 | H57: 0.1230044498 | I57: 0.2458640773 | J57: 0.125001417 | N57: =N56/$V$56 -> 0.04392229593 | O57: =O56/$V$56 -> 0.3162137456 | P57: 0.03526269792 | Q57: 0.1396838244 | R57: 0.0309529152 | S57: 0.1081515156 | T57: 0.125740178 | U57: 0.2000728274
B58: MIN | C58: 0.01039161848 | D58: -0.2513482416 | E58: -0.2341670137 | F58: -0.03898927849 | G58: 0.0428435167 | H58: 0.02579608793 | I58: 0.06532584088 | J58: -0.164919241 | N58: =(N57/25)*100 -> 0.1756891837 | O58: =(O57/25)*100 -> 1.264854982 | P58: 0.1410507917 | Q58: 0.5587352974 | R58: 0.1238116608 | S58: 0.4326060625 | T58: 0.5029607119 | U58: 0.8002913097
C59: =IF(C56<0,N57*$W$53,N57*$W$54) -> -0.04392229593 | D59: -0.3162137456 | E59: 0.03526269792 | F59: 0.1396838244 | G59: 0.0309529152 | H59: 0.1081515156 | I59: 0.125740178 | J59: -0.2000728274 | K59: =(C59+D59+E59+F59+G59+H59+I59+J59)/8 -> -0.01505221723
C60: =IF(C56<0,N58*$W$53,N58*$W$54) -> -0.1756891837 | D60: -1.264854982 | E60: 0.1410507917 | F60: 0.5587352974 | G60: 0.1238116608 | H60: 0.4326060625 | I60: 0.5029607119 | J60: -0.8002913097
B278: AUDCAD | C278: AUDJPY | D278: AUDNZD | E278: AUDUSD | F278: CADCHF | G278: CADJPY | H278: CHFJPY | I278: EURAUD | J278: EURCAD | K278: EURCHF | L278: EURGBP | M278: EURJPY | N278: GBPCAD | O278: GBPAUD | P278: GBPNZD | Q278: GBPCHF | R278: GBPJPY | S278: GBPUSD | T278: NZDJPY | U278: NZDUSD | V278: USDCAD | W278: USDCHF | X278: USDJPY | Y278: AUDCHF | Z278: EURUSD | AA278: EURNZD | AB278: NZDCAD | AC278: NZDCHF
B279: =C56 -> -143.0542714 | C279: =C56 -> -143.0542714 | D279: =C56 -> -143.0542714 | E279: =C56 -> -143.0542714 | F279: =E56 -> 114.8500881 | G279: =G56 -> 100.8131892 | H279: =E56 -> 114.8500881 | I279: =C56 -> -143.0542714 | J279: =G56 -> 100.8131892 | K279: =E56 -> 114.8500881 | L279: =H56 -> 352.2478945 | M279: =I56 -> 409.533909 | N279: =G56 -> 100.8131892 | O279: =C56 -> -143.0542714 | P279: =H56 -> 352.2478945 | Q279: =E56 -> 114.8500881 | R279: =I56 -> 409.533909 | S279: =J56 -> -651.6342542 | T279: =I56 -> 409.533909 | U279: =J56 -> -651.6342542 | V279: =G56 -> 100.8131892 | W279: =E56 -> 114.8500881 | X279: =I56 -> 409.533909 | Y279: =C56 -> -143.0542714 | Z279: =J56 -> -651.6342542 | AA279: =F56 -> 454.94816 | AB279: =F56 -> 454.94816 | AC279: =E56 -> 114.8500881
B280: =G56 -> 100.8131892 | C280: =I56 -> 409.533909 | D280: =F56 -> 454.94816 | E280: =J56 -> -651.6342542 | F280: =G56 -> 100.8131892 | G280: =I56 -> 409.533909 | H280: =I56 -> 409.533909 | I280: =D56 -> -1029.903515 | J280: =D56 -> -1029.903515 | K280: =D56 -> -1029.903515 | L280: =D56 -> -1029.903515 | M280: =D56 -> -1029.903515 | N280: =H56 -> 352.2478945 | O280: =H56 -> 352.2478945 | P280: =F56 -> 454.94816 | Q280: =H56 -> 352.2478945 | R280: =H56 -> 352.2478945 | S280: =H56 -> 352.2478945 | T280: =F56 -> 454.94816 | U280: =F56 -> 454.94816 | V280: =J56 -> -651.6342542 | W280: =J56 -> -651.6342542 | X280: =J56 -> -651.6342542 | Y280: =E56 -> 114.8500881 | Z280: =D56 -> -1029.903515 | AA280: =D56 -> -1029.903515 | AB280: =G56 -> 100.8131892 | AC280: =F56 -> 454.94816
B281: =ABS(B279)/(ABS(B279)+ABS(B280)) -> 0.5866066388 | C281: =ABS(C279)/(ABS(C279)+ABS(C280)) -> 0.2588804402 | D281: 0.239220217 | E281: 0.1800130073 | F281: 0.5325435537 | G281: 0.1975384784 | H281: 0.2190190561 | I281: 0.1219602897 | J281: 0.08915866268 | K281: 0.1003273436 | L281: 0.2548547808 | M281: 0.2845096995 | N281: 0.222515667 | O281: 0.2888222205 | P281: 0.4363845593 | Q281: 0.2458800774 | R281: 0.537600015 | S281: 0.649114296 | T281: 0.4737332603 | U281: 0.5888709651 | V281: 0.1339803731 | W281: 0.1498400969 | X281: 0.3859274366 | Y281: 0.5546795396 | Z281: 0.3875228176 | AA281: 0.3063930005 | AB281: 0.8186034539 | AC281: 0.2015627259
B282: =ABS(B280)/(ABS(B279)+ABS(B280)) -> 0.4133933612 | C282: =ABS(C280)/(ABS(C279)+ABS(C280)) -> 0.7411195598 | D282: 0.760779783 | E282: 0.8199869927 | F282: 0.4674564463 | G282: 0.8024615216 | H282: 0.7809809439 | I282: 0.8780397103 | J282: 0.9108413373 | K282: 0.8996726564 | L282: 0.7451452192 | M282: 0.7154903005 | N282: 0.777484333 | O282: 0.7111777795 | P282: 0.5636154407 | Q282: 0.7541199226 | R282: 0.462399985 | S282: 0.350885704 | T282: 0.5262667397 | U282: 0.4111290349 | V282: 0.8660196269 | W282: 0.8501599031 | X282: 0.6140725634 | Y282: 0.4453204604 | Z282: 0.6124771824 | AA282: 0.6936069995 | AB282: 0.1813965461 | AC282: 0.7984372741
B283: =IF($C$56<0,B281*$W$53,B281*$W$54) -> -0.5866066388 | C283: =IF($C$56<0,C281*$W$53,C281*$W$54) -> -0.2588804402 | D283: =IF($C$56<0,D281*$W$53,D281*$W$54) -> -0.239220217 | E283: =IF($C$56<0,E281*$W$53,E281*$W$54) -> -0.1800130073 | F283: =IF($E$56<0,F281*$W$53,F281*$W$54) -> 0.5325435537 | G283: =IF($G$56<0,G281*$W$53,G281*$W$54) -> 0.1975384784 | H283: =IF($E$56<0,H281*$W$53,H281*$W$54) -> 0.2190190561 | I283: =IF($C$56<0,I281*$W$53,I281*$W$54) -> -0.1219602897 | J283: =IF($G$56<0,J281*$W$53,J281*$W$54) -> 0.08915866268 | K283: =IF($E$56<0,K281*$W$53,K281*$W$54) -> 0.1003273436 | L283: =IF($H$56<0,L281*$W$53,L281*$W$54) -> 0.2548547808 | M283: =IF($I$56<0,M281*$W$53,M281*$W$54) -> 0.2845096995 | N283: =IF($G$56<0,N281*$W$53,N281*$W$54) -> 0.222515667 | O283: =IF($C$56<0,O281*$W$53,O281*$W$54) -> -0.2888222205 | P283: =IF($H$56<0,P281*$W$53,P281*$W$54) -> 0.4363845593 | Q283: =IF($E$56<0,Q281*$W$53,Q281*$W$54) -> 0.2458800774 | R283: =IF($I$56<0,R281*$W$53,R281*$W$54) -> 0.537600015 | S283: =IF($J$56<0,S281*$W$53,S281*$W$54) -> -0.649114296 | T283: =IF($I$56<0,T281*$W$53,T281*$W$54) -> 0.4737332603 | U283: =IF($J$56<0,U281*$W$53,U281*$W$54) -> -0.5888709651 | V283: =IF($G$56<0,V281*$W$53,V281*$W$54) -> 0.1339803731 | W283: =IF($E$56<0,W281*$W$53,W281*$W$54) -> 0.1498400969 | X283: =IF($I$56<0,X281*$W$53,X281*$W$54) -> 0.3859274366 | Y283: =IF($C$56<0,Y281*$W$53,Y281*$W$54) -> -0.5546795396 | Z283: =IF($J$56<0,Z281*$W$53,Z281*$W$54) -> -0.3875228176 | AA283: =IF($F$56<0,AA281*$W$53,AA281*$W$54) -> 0.3063930005 | AB283: =IF($F$56<0,AB281*$W$53,AB281*$W$54) -> 0.8186034539 | AC283: =IF($E$56<0,AC281*$W$53,AC281*$W$54) -> 0.2015627259
B284: =IF($G$56<0,B282*$W$53,B282*$W$54) -> 0.4133933612 | C284: =IF($I$56<0,C282*$W$53,C282*$W$54) -> 0.7411195598 | D284: =IF($F$56<0,D282*$W$53,D282*$W$54) -> 0.760779783 | E284: =IF($J$56<0,E282*$W$53,E282*$W$54) -> -0.8199869927 | F284: =IF($G$56<0,F282*$W$53,F282*$W$54) -> 0.4674564463 | G284: =IF($I$56<0,G282*$W$53,G282*$W$54) -> 0.8024615216 | H284: =IF($I$56<0,H282*$W$53,H282*$W$54) -> 0.7809809439 | I284: =IF($D$56<0,I282*$W$53,I282*$W$54) -> -0.8780397103 | J284: =IF($D$56<0,J282*$W$53,J282*$W$54) -> -0.9108413373 | K284: =IF($D$56<0,K282*$W$53,K282*$W$54) -> -0.8996726564 | L284: =IF($D$56<0,L282*$W$53,L282*$W$54) -> -0.7451452192 | M284: =IF($D$56<0,M282*$W$53,M282*$W$54) -> -0.7154903005 | N284: =IF($H$56<0,N282*$W$53,N282*$W$54) -> 0.777484333 | O284: =IF($H$56<0,O282*$W$53,O282*$W$54) -> 0.7111777795 | P284: =IF($F$56<0,P282*$W$53,P282*$W$54) -> 0.5636154407 | Q284: =IF($H$56<0,Q282*$W$53,Q282*$W$54) -> 0.7541199226 | R284: =IF($H$56<0,R282*$W$53,R282*$W$54) -> 0.462399985 | S284: =IF($H$56<0,S282*$W$53,S282*$W$54) -> 0.350885704 | T284: =IF($F$56<0,T282*$W$53,T282*$W$54) -> 0.5262667397 | U284: =IF($F$56<0,U282*$W$53,U282*$W$54) -> 0.4111290349 | V284: =IF($J$56<0,V282*$W$53,V282*$W$54) -> -0.8660196269 | W284: =IF($J$56<0,W282*$W$53,W282*$W$54) -> -0.8501599031 | X284: =IF($J$56<0,X282*$W$53,X282*$W$54) -> -0.6140725634 | Y284: =IF($E$56<0,Y282*$W$53,Y282*$W$54) -> 0.4453204604 | Z284: =IF($D$56<0,Z282*$W$53,Z282*$W$54) -> -0.6124771824 | AA284: =IF($D$56<0,AA282*$W$53,AA282*$W$54) -> -0.6936069995 | AB284: =IF($G$56<0,AB282*$W$53,AB282*$W$54) -> 0.1813965461 | AC284: =IF($F$56<0,AC282*$W$53,AC282*$W$54) -> 0.7984372741
B288: IF(C56<0;N57*$W$53;N57*$W$54)
